[Event "*** Titled Tuesday Blitz"]
[Site "Chess.com"]
[Date "2020.10.20"]
[Round "10"]
[White "Fischerev7"]
[Black "brunomorado"]
[Result "1-0"]
[WhiteElo "2419"]
[BlackElo "2309"]
[TimeControl "180+1"]
[EndTime "11:58:30 PDT"]
[Termination "Fischerev7 won by resignation"]

1. e4 {[%clk 0:02:53.3]} 1... c5 {[%clk 0:02:59.7]} 2. Nf3 {[%clk 0:02:50.8]}
2... Nc6 {[%clk 0:03:00]} 3. d4 {[%clk 0:02:50.6]} 3... cxd4 {[%clk 0:03:00.9]}
4. Nxd4 {[%clk 0:02:49.9]} 4... e5 {[%clk 0:03:01.6]} 5. Nb5 {[%clk 0:02:49.5]}
5... d6 {[%clk 0:03:02]} 6. N1c3 {[%clk 0:02:47.2]} 6... a6 {[%clk 0:03:02.3]}
7. Na3 {[%clk 0:02:46.4]} 7... b5 {[%clk 0:03:02.9]} 8. Nd5 {[%clk 0:02:45.1]}
8... Nce7 {[%clk 0:03:03.6]} 9. c4 {[%clk 0:02:43.7]} 9... Nxd5 {[%clk
0:03:03.4]} 10. cxd5 {[%clk 0:02:44.6]} 10... f5 {[%clk 0:03:03.2]} 11. exf5
{[%clk 0:02:34.2]} 11... Bxf5 {[%clk 0:03:04.1]} 12. Bd3 {[%clk 0:02:31.3]}
12... e4 {[%clk 0:03:03.7]} 13. Be2 {[%clk 0:02:27.5]} 13... Nf6 {[%clk
0:03:03]} 14. Nc2 {[%clk 0:02:19]} 14... Be7 {[%clk 0:03:02.4]} 15. Bf4 {[%clk
0:02:16.1]} 15... O-O {[%clk 0:02:58.4]} 16. Ne3 {[%clk 0:02:14.5]} 16... Bd7
{[%clk 0:02:57.8]} 17. O-O {[%clk 0:02:08.2]} 17... Ne8 {[%clk 0:02:57]} 18. Bg3
{[%clk 0:02:07.2]} 18... Bf6 {[%clk 0:02:56.7]} 19. Qd2 {[%clk 0:02:03.5]} 19...
Qe7 {[%clk 0:02:55.4]} 20. Rac1 {[%clk 0:02:01.4]} 20... Be5 {[%clk 0:02:51.9]}
21. Rc2 {[%clk 0:01:56.8]} 21... Nf6 {[%clk 0:02:47.9]} 22. Rfc1 {[%clk
0:01:48.1]} 22... Bxg3 {[%clk 0:02:46.5]} 23. hxg3 {[%clk 0:01:46.6]} 23... Rfc8
{[%clk 0:02:43.8]} 24. Rxc8+ {[%clk 0:01:43.2]} 24... Rxc8 {[%clk 0:02:44.7]}
25. Rxc8+ {[%clk 0:01:43.2]} 25... Bxc8 {[%clk 0:02:44.5]} 26. Qd4 {[%clk
0:01:43.3]} 26... Qc7 {[%clk 0:02:38.9]} 27. Qd2 {[%clk 0:01:35.3]} 27... Qc5
{[%clk 0:02:24.6]} 28. b4 {[%clk 0:01:33]} 28... Qc7 {[%clk 0:02:24.2]} 29. a3
{[%clk 0:01:31.8]} 29... Bb7 {[%clk 0:02:18.7]} 30. Bd1 {[%clk 0:01:26.2]} 30...
Qf7 {[%clk 0:02:11.5]} 31. Bb3 {[%clk 0:01:21.3]} 31... Qc7 {[%clk 0:02:09.9]}
32. Kf1 {[%clk 0:01:18.2]} 32... Nd7 {[%clk 0:02:01.2]} 33. Qc2 {[%clk
0:01:15.5]} 33... Qxc2 {[%clk 0:01:59.7]} 34. Bxc2 {[%clk 0:01:16.4]} 34... Nf6
{[%clk 0:01:59.2]} 35. Bb3 {[%clk 0:01:13.4]} 35... g6 {[%clk 0:01:59.1]} 36.
Ke2 {[%clk 0:01:11.6]} 36... Kf7 {[%clk 0:01:59]} 37. Kd2 {[%clk 0:01:10.4]}
37... Nd7 {[%clk 0:01:59]} 38. Kc3 {[%clk 0:01:09.4]} 38... Kf6 {[%clk
0:01:58.4]} 39. Kd4 {[%clk 0:01:08.3]} 39... Nb6 {[%clk 0:01:46.4]} 40. Kxe4
{[%clk 0:01:05.3]} 40... h5 {[%clk 0:01:46.6]} 41. Kd4 {[%clk 0:01:03.4]} 41...
Bc8 {[%clk 0:01:46.1]} 42. Bc2 {[%clk 0:01:02.6]} 42... Nd7 {[%clk 0:01:43.6]}
43. a4 {[%clk 0:00:59.9]} 43... Ne5 {[%clk 0:01:41.1]} 44. axb5 {[%clk
0:00:57.2]} 44... axb5 {[%clk 0:01:42]} 45. Bd3 {[%clk 0:00:55]} 45... Nxd3
{[%clk 0:01:36.6]} 46. Kxd3 {[%clk 0:00:55.9]} 46... Ke5 {[%clk 0:01:37.3]} 47.
f4+ {[%clk 0:00:53.9]} 47... Kf6 {[%clk 0:01:37]} 48. Kd4 {[%clk 0:00:52.4]}
48... Bd7 {[%clk 0:01:37.1]} 49. Nd1 {[%clk 0:00:48.9]} 49... g5 {[%clk
0:01:36.3]} 50. Nc3 {[%clk 0:00:45.6]} 50... gxf4 {[%clk 0:01:30.5]} 51. gxf4
{[%clk 0:00:45.8]} 51... Kf5 {[%clk 0:01:31.4]} 52. Ke3 {[%clk 0:00:43.7]} 52...
Kg4 {[%clk 0:01:27.3]} 53. Ne4 {[%clk 0:00:43.2]} 53... Bc8 {[%clk 0:01:11.5]}
54. g3 {[%clk 0:00:41]} 54... Bd7 {[%clk 0:01:10.4]} 55. Kf2 {[%clk 0:00:40.4]}
55... Kf5 {[%clk 0:01:10]} 56. Nxd6+ {[%clk 0:00:40.3]} 56... Kf6 {[%clk
0:01:10.2]} 57. Ke3 {[%clk 0:00:38.6]} 57... Ke7 {[%clk 0:01:06.4]} 58. Ne4
{[%clk 0:00:38]} 58... Kf7 {[%clk 0:01:06.6]} 59. Kd4 {[%clk 0:00:38.3]} 59...
Kg6 {[%clk 0:01:06.1]} 60. Ke5 {[%clk 0:00:37.6]} 60... Bf5 {[%clk 0:01:06]} 61.
Nd6 {[%clk 0:00:37.1]} 61... Bd7 {[%clk 0:01:06.3]} 62. Nb7 {[%clk 0:00:34.7]}
62... Bg4 {[%clk 0:01:00.5]} 63. Nc5 {[%clk 0:00:34.2]} 63... Kf7 {[%clk
0:00:58.2]} 64. d6 {[%clk 0:00:33.2]} 64... Ke8 {[%clk 0:00:57.8]} 65. f5 {[%clk
0:00:33.4]} 65... h4 {[%clk 0:00:54.7]} 66. gxh4 {[%clk 0:00:34.3]} 1-0

[Event "*** Titled Tuesday Blitz"]
[Site "Chess.com"]
[Date "2020.10.20"]
[Round "10"]
[White "Arfan48"]
[Black "Sadykov_Ramil"]
[Result "1/2-1/2"]
[WhiteElo "2414"]
[BlackElo "2547"]
[TimeControl "180+1"]
[EndTime "11:58:31 PDT"]
[Termination "Game drawn by agreement"]

1. e4 {[%clk 0:03:00.9]} 1... e5 {[%clk 0:02:58.6]} 2. Nf3 {[%clk 0:03:00.8]}
2... Nf6 {[%clk 0:02:59.2]} 3. Nxe5 {[%clk 0:03:00.6]} 3... Nxe4 {[%clk
0:02:57.7]} 4. Qe2 {[%clk 0:03:00.2]} 4... Qe7 {[%clk 0:02:57.9]} 5. Qxe4 {[%clk
0:02:59.7]} 5... d6 {[%clk 0:02:58.4]} 6. d4 {[%clk 0:02:59.2]} 6... dxe5 {[%clk
0:02:58.4]} 7. dxe5 {[%clk 0:02:58.7]} 7... Nc6 {[%clk 0:02:56.8]} 8. Nc3 {[%clk
0:02:51.4]} 8... Qxe5 {[%clk 0:02:55.3]} 9. Qxe5+ {[%clk 0:02:51.2]} 9... Nxe5
{[%clk 0:02:56.2]} 10. Bf4 {[%clk 0:02:51.7]} 10... Bd6 {[%clk 0:02:51]} 11. Bg3
{[%clk 0:02:22.5]} 11... f6 {[%clk 0:02:46.2]} 12. Nb5 {[%clk 0:02:12.7]} 12...
Bb4+ {[%clk 0:02:45.9]} 13. c3 {[%clk 0:02:10.7]} 13... Ba5 {[%clk 0:02:46.4]}
14. f4 {[%clk 0:01:42.9]} 14... Ng4 {[%clk 0:02:22.3]} 15. O-O-O {[%clk
0:01:23]} 15... Bd7 {[%clk 0:02:05.8]} 16. h3 {[%clk 0:00:52.8]} 16... Nh6
{[%clk 0:02:00.1]} 17. Bc4 {[%clk 0:00:48.8]} 17... O-O-O {[%clk 0:01:57.4]} 18.
Nxa7+ {[%clk 0:00:46.8]} 18... Kb8 {[%clk 0:01:53.8]} 19. Nb5 {[%clk 0:00:47.4]}
19... Bb6 {[%clk 0:01:50.4]} 20. Nd4 {[%clk 0:00:44.2]} 20... Nf5 {[%clk
0:00:59.9]} 21. Bf2 {[%clk 0:00:39.4]} 21... Nd6 {[%clk 0:00:57.2]} 22. Bd5
{[%clk 0:00:34]} 22... c6 {[%clk 0:00:44.3]} 23. Bf3 {[%clk 0:00:34]} 23... Bc7
{[%clk 0:00:29.2]} 24. Rhe1 {[%clk 0:00:33.1]} 24... Rhe8 {[%clk 0:00:29]} 25.
Rxe8 {[%clk 0:00:33.2]} 25... Rxe8 {[%clk 0:00:29.9]} 26. Re1 {[%clk 0:00:30.9]}
26... Rxe1+ {[%clk 0:00:28.7]} 27. Bxe1 {[%clk 0:00:31.8]} 27... Nf5 {[%clk
0:00:27.3]} 28. Bd2 {[%clk 0:00:27.3]} 28... Nxd4 {[%clk 0:00:24.1]} 29. cxd4
{[%clk 0:00:28.2]} 29... Be6 {[%clk 0:00:25]} 30. b3 {[%clk 0:00:26.2]} 30... f5
{[%clk 0:00:13.5]} 31. Kc2 {[%clk 0:00:25.6]} 31... Bd5 {[%clk 0:00:12.7]} 32.
Bxd5 {[%clk 0:00:23.8]} 32... cxd5 {[%clk 0:00:13.6]} 33. g3 {[%clk 0:00:20.7]}
33... Ka7 {[%clk 0:00:12]} 34. h4 {[%clk 0:00:20]} 34... h5 {[%clk 0:00:11.7]}
35. Bb4 {[%clk 0:00:19.8]} 35... g6 {[%clk 0:00:10.6]} 36. Kc3 {[%clk
0:00:19.8]} 36... b5 {[%clk 0:00:10.4]} 37. Bc5+ {[%clk 0:00:19.9]} 37... Ka6
{[%clk 0:00:10.5]} 38. Bb4 {[%clk 0:00:18.3]} 38... Bb6 {[%clk 0:00:10.2]} 39.
Bc5 {[%clk 0:00:15.5]} 39... Ba5+ {[%clk 0:00:10.3]} 40. b4 {[%clk 0:00:15.2]}
40... Bc7 {[%clk 0:00:10]} 41. Kb3 {[%clk 0:00:15.1]} 41... Bd8 {[%clk
0:00:09.7]} 42. a4 {[%clk 0:00:15.4]} 42... Bc7 {[%clk 0:00:09.7]} 43. Be7
{[%clk 0:00:14.8]} 43... Bb6 {[%clk 0:00:09.5]} 44. Bc5 {[%clk 0:00:14.7]} 44...
Bc7 {[%clk 0:00:09.6]} 45. a5 {[%clk 0:00:12.1]} 45... Bd8 {[%clk 0:00:09.7]}
46. Bd6 {[%clk 0:00:11.8]} 1/2-1/2

[Event "*** Titled Tuesday Blitz"]
[Site "Chess.com"]
[Date "2020.10.20"]
[Round "10"]
[White "Trickov"]
[Black "stolencandy13"]
[Result "1-0"]
[WhiteElo "2356"]
[BlackElo "2446"]
[TimeControl "180+1"]
[EndTime "11:58:32 PDT"]
[Termination "Trickov won on time"]

1. d4 {[%clk 0:02:31.1]} 1... Nf6 {[%clk 0:02:53.2]} 2. Nf3 {[%clk 0:02:29.3]}
2... c6 {[%clk 0:02:52]} 3. c4 {[%clk 0:02:27.3]} 3... g6 {[%clk 0:02:51.8]} 4.
Nc3 {[%clk 0:02:27.2]} 4... Bg7 {[%clk 0:02:52.3]} 5. g3 {[%clk 0:02:27.4]} 5...
O-O {[%clk 0:02:51.4]} 6. Bg2 {[%clk 0:02:27.4]} 6... d5 {[%clk 0:02:51.3]} 7.
Qb3 {[%clk 0:02:27]} 7... Qb6 {[%clk 0:02:48.3]} 8. c5 {[%clk 0:02:25.8]} 8...
Qxb3 {[%clk 0:02:45.9]} 9. axb3 {[%clk 0:02:25.9]} 9... Na6 {[%clk 0:02:45.2]}
10. O-O {[%clk 0:02:23.8]} 10... Nb4 {[%clk 0:02:44.7]} 11. Ra4 {[%clk
0:02:21.1]} 11... a5 {[%clk 0:02:24.8]} 12. Bf4 {[%clk 0:02:16.4]} 12... Bf5
{[%clk 0:02:20.5]} 13. Bc7 {[%clk 0:01:48.3]} 13... Bc2 {[%clk 0:01:39.2]} 14.
Bxa5 {[%clk 0:01:38.3]} 14... Na6 {[%clk 0:01:35.7]} 15. Nd2 {[%clk 0:01:38]}
15... Nd7 {[%clk 0:01:20]} 16. Rc1 {[%clk 0:01:34.5]} 16... Bf5 {[%clk
0:01:19.1]} 17. e4 {[%clk 0:01:05.9]} 17... dxe4 {[%clk 0:01:13.8]} 18. Ncxe4
{[%clk 0:00:53.4]} 18... e5 {[%clk 0:01:01.7]} 19. dxe5 {[%clk 0:00:40.5]} 19...
Bxe5 {[%clk 0:01:01.7]} 20. Bc3 {[%clk 0:00:32.3]} 20... Bxc3 {[%clk 0:00:52.5]}
21. Rxc3 {[%clk 0:00:31.3]} 21... Rfe8 {[%clk 0:00:48.7]} 22. b4 {[%clk
0:00:27]} 22... Nc7 {[%clk 0:00:41.5]} 23. Rxa8 {[%clk 0:00:24.9]} 23... Rxa8
{[%clk 0:00:42.4]} 24. Ra3 {[%clk 0:00:24.9]} 24... Re8 {[%clk 0:00:33.3]} 25.
Ra7 {[%clk 0:00:24.8]} 25... Rb8 {[%clk 0:00:30.8]} 26. Nd6 {[%clk 0:00:23.6]}
26... Na6 {[%clk 0:00:16.8]} 27. Nxf5 {[%clk 0:00:14.7]} 27... gxf5 {[%clk
0:00:14.8]} 28. Bxc6 {[%clk 0:00:15.1]} 28... bxc6 {[%clk 0:00:10.6]} 29. Rxa6
{[%clk 0:00:14.1]} 29... Rxb4 {[%clk 0:00:10.6]} 30. Rxc6 {[%clk 0:00:14]} 30...
Rxb2 {[%clk 0:00:10.5]} 31. Nf3 {[%clk 0:00:13.5]} 31... Kg7 {[%clk 0:00:09.4]}
32. Rc7 {[%clk 0:00:13.1]} 32... Nf6 {[%clk 0:00:09.1]} 33. Ne5 {[%clk
0:00:13.3]} 33... Ne4 {[%clk 0:00:05.7]} 34. Rxf7+ {[%clk 0:00:13.1]} 34... Kg8
{[%clk 0:00:05.8]} 35. Rxf5 {[%clk 0:00:13.1]} 35... Rc2 {[%clk 0:00:03.4]} 36.
c6 {[%clk 0:00:12.2]} 36... Rc1+ {[%clk 0:00:03.5]} 37. Kg2 {[%clk 0:00:12.1]}
37... h6 {[%clk 0:00:03.7]} 38. h4 {[%clk 0:00:12.3]} 38... Nd2 {[%clk
0:00:03.9]} 39. h5 {[%clk 0:00:11.8]} 39... Kg7 {[%clk 0:00:04.2]} 40. Rf7+
{[%clk 0:00:10.7]} 40... Kg8 {[%clk 0:00:04.1]} 41. c7 {[%clk 0:00:10.6]} 41...
Ne4 {[%clk 0:00:03.7]} 42. Rd7 {[%clk 0:00:10]} 1-0

[Event "*** Titled Tuesday Blitz"]
[Site "Chess.com"]
[Date "2020.10.20"]
[Round "10"]
[White "BlackBoarder"]
[Black "Shahinyan_ChessMood"]
[Result "1-0"]
[WhiteElo "2609"]
[BlackElo "2721"]
[TimeControl "180+1"]
[EndTime "11:58:38 PDT"]
[Termination "BlackBoarder won by resignation"]

1. e4 {[%clk 0:03:00]} 1... d6 {[%clk 0:02:56.6]} 2. d4 {[%clk 0:02:59.8]} 2...
Nf6 {[%clk 0:02:57.1]} 3. Nc3 {[%clk 0:02:59.7]} 3... e5 {[%clk 0:02:57.8]} 4.
Nf3 {[%clk 0:02:57.9]} 4... Nbd7 {[%clk 0:02:57.6]} 5. Bc4 {[%clk 0:02:57.1]}
5... Be7 {[%clk 0:02:57.9]} 6. O-O {[%clk 0:02:57.2]} 6... O-O {[%clk
0:02:58.5]} 7. a4 {[%clk 0:02:56]} 7... c6 {[%clk 0:02:59.1]} 8. a5 {[%clk
0:02:55.5]} 8... h6 {[%clk 0:02:59.4]} 9. Re1 {[%clk 0:02:55.5]} 9... Re8 {[%clk
0:02:58]} 10. h3 {[%clk 0:02:55.5]} 10... Qc7 {[%clk 0:02:57.9]} 11. Ba2 {[%clk
0:02:43]} 11... Nf8 {[%clk 0:02:55.9]} 12. Be3 {[%clk 0:02:36.9]} 12... Be6
{[%clk 0:02:54.5]} 13. d5 {[%clk 0:02:27.4]} 13... cxd5 {[%clk 0:02:51.4]} 14.
Nxd5 {[%clk 0:02:27.4]} 14... Nxd5 {[%clk 0:02:44.7]} 15. Bxd5 {[%clk
0:02:26.3]} 15... Bxd5 {[%clk 0:02:45]} 16. Qxd5 {[%clk 0:02:27.2]} 16... Qxc2
{[%clk 0:02:38.4]} 17. Qxb7 {[%clk 0:02:12.8]} 17... Qc8 {[%clk 0:02:30.6]} 18.
a6 {[%clk 0:02:04.3]} 18... Rb8 {[%clk 0:02:20.2]} 19. Qxa7 {[%clk 0:01:58.5]}
19... Rxb2 {[%clk 0:02:19.9]} 20. Rec1 {[%clk 0:01:54.8]} 20... Qa8 {[%clk
0:02:19.9]} 21. Qxa8 {[%clk 0:01:37.2]} 21... Rxa8 {[%clk 0:02:20.8]} 22. a7
{[%clk 0:01:35.2]} 22... Bd8 {[%clk 0:00:59.6]} 23. Rcb1 {[%clk 0:00:50.8]}
23... Rxb1+ {[%clk 0:00:59.1]} 24. Rxb1 {[%clk 0:00:51]} 24... Bc7 {[%clk
0:01:00]} 25. Rb7 {[%clk 0:00:50.6]} 25... Ne6 {[%clk 0:01:00.6]} 26. Bb6 {[%clk
0:00:50.3]} 26... Bxb6 {[%clk 0:00:44.4]} 27. Rb8+ {[%clk 0:00:49.5]} 27... Kh7
{[%clk 0:00:45.1]} 28. Rxa8 {[%clk 0:00:49.7]} 28... Kg6 {[%clk 0:00:45.7]} 29.
Nd2 {[%clk 0:00:31.9]} 29... Kf6 {[%clk 0:00:25.2]} 30. Nc4 {[%clk 0:00:30.7]}
30... Bc5 {[%clk 0:00:25.8]} 31. Nxd6 {[%clk 0:00:23.9]} 31... Nd4 {[%clk
0:00:23.6]} 32. Ne8+ {[%clk 0:00:07.8]} 32... Kg6 {[%clk 0:00:20.2]} 33. Nxg7
{[%clk 0:00:04.9]} 33... Kxg7 {[%clk 0:00:15.3]} 34. Rg8+ {[%clk 0:00:03.8]}
34... Kxg8 {[%clk 0:00:15.8]} 35. a8=Q+ {[%clk 0:00:04.2]} 35... Kg7 {[%clk
0:00:11.4]} 36. Qd5 {[%clk 0:00:04.1]} 36... Ne2+ {[%clk 0:00:09]} 37. Kf1
{[%clk 0:00:03.4]} 37... Nf4 {[%clk 0:00:01.7]} 38. Qxc5 {[%clk 0:00:03]} 38...
Nd3 {[%clk 0:00:01.5]} 39. Qd5 {[%clk 0:00:02.9]} 39... Nf4 {[%clk 0:00:02.1]}
40. Qxe5+ {[%clk 0:00:03.2]} 1-0

[Event "*** Titled Tuesday Blitz"]
[Site "Chess.com"]
[Date "2020.10.20"]
[Round "10"]
[White "Ariadna_Atreides"]
[Black "TC2304"]
[Result "1-0"]
[WhiteElo "2087"]
[BlackElo "2242"]
[TimeControl "180+1"]
[EndTime "11:58:39 PDT"]
[Termination "Ariadna_Atreides won by resignation"]

1. d4 {[%clk 0:03:00.9]} 1... d5 {[%clk 0:02:59.1]} 2. Nf3 {[%clk 0:03:00.6]}
2... Nf6 {[%clk 0:02:58.5]} 3. e3 {[%clk 0:03:00.3]} 3... c5 {[%clk 0:02:54.9]}
4. Bd3 {[%clk 0:02:57.9]} 4... Nc6 {[%clk 0:02:54.6]} 5. O-O {[%clk 0:02:48.6]}
5... cxd4 {[%clk 0:02:51.9]} 6. exd4 {[%clk 0:02:44.6]} 6... Bg4 {[%clk
0:02:51.8]} 7. c3 {[%clk 0:02:44.4]} 7... e6 {[%clk 0:02:52]} 8. Nbd2 {[%clk
0:02:41.8]} 8... Bd6 {[%clk 0:02:50]} 9. h3 {[%clk 0:02:41.8]} 9... Bh5 {[%clk
0:02:49.1]} 10. Qb3 {[%clk 0:02:40.2]} 10... Qc7 {[%clk 0:02:41.6]} 11. Re1
{[%clk 0:02:37.7]} 11... O-O {[%clk 0:02:41]} 12. a4 {[%clk 0:02:36.9]} 12...
Rac8 {[%clk 0:02:23.8]} 13. g4 {[%clk 0:01:51.3]} 13... Bg6 {[%clk 0:02:22.7]}
14. Bxg6 {[%clk 0:01:50.6]} 14... hxg6 {[%clk 0:02:22.9]} 15. Qd1 {[%clk
0:01:43.1]} 15... Bf4 {[%clk 0:02:18.4]} 16. Nf1 {[%clk 0:01:41.2]} 16... Ne4
{[%clk 0:02:17.3]} 17. Kg2 {[%clk 0:01:32.9]} 17... Na5 {[%clk 0:02:12.9]} 18.
Bxf4 {[%clk 0:01:28.5]} 18... Qxf4 {[%clk 0:02:12.1]} 19. Ne3 {[%clk 0:01:29]}
19... Nc4 {[%clk 0:02:07]} 20. Nxc4 {[%clk 0:01:24]} 20... Rxc4 {[%clk
0:02:02.3]} 21. Qe2 {[%clk 0:01:20]} 21... Rfc8 {[%clk 0:01:55.5]} 22. Ne5
{[%clk 0:01:19]} 22... R4c7 {[%clk 0:01:47.7]} 23. Qe3 {[%clk 0:01:13.2]} 23...
Qf6 {[%clk 0:01:26.9]} 24. c4 {[%clk 0:01:12.1]} 24... g5 {[%clk 0:01:23.1]} 25.
c5 {[%clk 0:01:08]} 25... Qe7 {[%clk 0:01:11.7]} 26. f3 {[%clk 0:01:00.8]} 26...
Nf6 {[%clk 0:00:46.7]} 27. Qxg5 {[%clk 0:00:59.7]} 27... b6 {[%clk 0:00:47]} 28.
b4 {[%clk 0:00:57.4]} 28... bxc5 {[%clk 0:00:46.1]} 29. bxc5 {[%clk 0:00:53.6]}
29... Rb7 {[%clk 0:00:38.2]} 30. Re2 {[%clk 0:00:52.3]} 30... Rb4 {[%clk
0:00:33.2]} 31. Qd2 {[%clk 0:00:42.7]} 31... a5 {[%clk 0:00:30.9]} 32. c6 {[%clk
0:00:38]} 32... Qa7 {[%clk 0:00:27.9]} 33. Rd1 {[%clk 0:00:33]} 33... Rxa4
{[%clk 0:00:25.7]} 34. h4 {[%clk 0:00:25.2]} 34... Rb4 {[%clk 0:00:19.2]} 35. h5
{[%clk 0:00:23.8]} 35... Ne8 {[%clk 0:00:17.1]} 36. h6 {[%clk 0:00:22.4]} 36...
f6 {[%clk 0:00:15.4]} 37. Nd7 {[%clk 0:00:18.2]} 37... Rxc6 {[%clk 0:00:13.7]}
38. Nc5 {[%clk 0:00:16.8]} 38... Qf7 {[%clk 0:00:08.7]} 39. hxg7 {[%clk
0:00:15.3]} 39... Nxg7 {[%clk 0:00:07.3]} 40. Qh6 {[%clk 0:00:13.1]} 40... a4
{[%clk 0:00:05.5]} 41. Rh1 {[%clk 0:00:12.1]} 41... Kf8 {[%clk 0:00:04.7]} 42.
Qh8+ {[%clk 0:00:11.6]} 42... Ke7 {[%clk 0:00:05.4]} 43. Rh7 {[%clk 0:00:09.6]}
43... Qf8 {[%clk 0:00:01.5]} 44. Rxg7+ {[%clk 0:00:08.8]} 44... Ke8 {[%clk
0:00:02]} 45. Rg8 {[%clk 0:00:09.1]} 1-0

[Event "*** Titled Tuesday Blitz"]
[Site "Chess.com"]
[Date "2020.10.20"]
[Round "10"]
[White "Gerodot71"]
[Black "11kevin"]
[Result "1-0"]
[WhiteElo "2471"]
[BlackElo "2570"]
[TimeControl "180+1"]
[EndTime "11:58:41 PDT"]
[Termination "Gerodot71 won on time"]

1. d4 {[%clk 0:03:00.9]} 1... d5 {[%clk 0:02:00.7]} 2. c4 {[%clk 0:03:01.2]}
2... e6 {[%clk 0:02:00.8]} 3. Nf3 {[%clk 0:03:01.4]} 3... Nf6 {[%clk 0:02:01.2]}
4. g3 {[%clk 0:03:01.7]} 4... Be7 {[%clk 0:02:01.5]} 5. Bg2 {[%clk 0:03:01.9]}
5... O-O {[%clk 0:02:02.2]} 6. O-O {[%clk 0:03:02.5]} 6... dxc4 {[%clk
0:02:02.8]} 7. Qc2 {[%clk 0:03:02.7]} 7... a6 {[%clk 0:02:03.3]} 8. a4 {[%clk
0:03:02.5]} 8... Bd7 {[%clk 0:02:03.3]} 9. Qxc4 {[%clk 0:03:02]} 9... Bc6 {[%clk
0:02:03.6]} 10. Bf4 {[%clk 0:03:02.2]} 10... Nbd7 {[%clk 0:02:04]} 11. Qc1
{[%clk 0:03:02.2]} 11... Qb8 {[%clk 0:01:59.4]} 12. Nc3 {[%clk 0:02:59.8]} 12...
Bd6 {[%clk 0:01:59.6]} 13. Rd1 {[%clk 0:02:52.9]} 13... Qa7 {[%clk 0:01:58]} 14.
Bxd6 {[%clk 0:02:48.9]} 14... cxd6 {[%clk 0:01:58.1]} 15. Qf4 {[%clk 0:02:49.5]}
15... Qb8 {[%clk 0:01:53.5]} 16. Rac1 {[%clk 0:02:45.6]} 16... d5 {[%clk
0:01:53]} 17. Qh4 {[%clk 0:02:41.7]} 17... Qd6 {[%clk 0:01:52]} 18. Qf4 {[%clk
0:02:21.4]} 18... Qb4 {[%clk 0:01:51.4]} 19. Qd2 {[%clk 0:02:19]} 19... Bxa4
{[%clk 0:01:46.3]} 20. Nxa4 {[%clk 0:02:18.9]} 20... Qxa4 {[%clk 0:01:46.1]} 21.
Rc7 {[%clk 0:02:17.5]} 21... Qb5 {[%clk 0:01:42]} 22. Rdc1 {[%clk 0:02:08.5]}
22... Ne8 {[%clk 0:01:40.5]} 23. R7c2 {[%clk 0:02:03.8]} 23... Nd6 {[%clk
0:01:39.3]} 24. Ne5 {[%clk 0:01:54.8]} 24... Nxe5 {[%clk 0:01:37.8]} 25. dxe5
{[%clk 0:01:55.7]} 25... Nc4 {[%clk 0:01:37.4]} 26. Qd3 {[%clk 0:01:53.5]} 26...
Qb6 {[%clk 0:01:34.9]} 27. Qc3 {[%clk 0:01:44.9]} 27... h6 {[%clk 0:01:20.5]}
28. e4 {[%clk 0:01:38.9]} 28... Rad8 {[%clk 0:00:58.1]} 29. exd5 {[%clk
0:01:33]} 29... exd5 {[%clk 0:00:59]} 30. Rd1 {[%clk 0:01:31.7]} 30... Qe6
{[%clk 0:00:54.1]} 31. f4 {[%clk 0:01:22.6]} 31... b5 {[%clk 0:00:47.8]} 32. b3
{[%clk 0:01:17.1]} 32... Nb6 {[%clk 0:00:34.8]} 33. Qd4 {[%clk 0:01:10.2]} 33...
Rc8 {[%clk 0:00:30]} 34. Rdc1 {[%clk 0:01:10.3]} 34... Rxc2 {[%clk 0:00:29.2]}
35. Rxc2 {[%clk 0:01:11.2]} 35... g6 {[%clk 0:00:25.6]} 36. Rc7 {[%clk
0:01:02.4]} 36... Rc8 {[%clk 0:00:15.4]} 37. Rxc8+ {[%clk 0:01:00.5]} 37... Nxc8
{[%clk 0:00:14.9]} 38. Bxd5 {[%clk 0:01:00.1]} 38... Qf5 {[%clk 0:00:14]} 39.
Be4 {[%clk 0:00:58.5]} 39... Qe6 {[%clk 0:00:13.8]} 40. Qd8+ {[%clk 0:00:49.8]}
40... Kg7 {[%clk 0:00:13.9]} 41. Bd5 {[%clk 0:00:50.3]} 41... Qf5 {[%clk
0:00:13.3]} 42. h4 {[%clk 0:00:36.7]} 42... Qb1+ {[%clk 0:00:12.6]} 43. Kh2
{[%clk 0:00:36.7]} 43... Qc2+ {[%clk 0:00:12.9]} 44. Bg2 {[%clk 0:00:36.4]}
44... Qc5 {[%clk 0:00:10.8]} 45. h5 {[%clk 0:00:28.8]} 45... Ne7 {[%clk
0:00:09.8]} 46. Qd6 {[%clk 0:00:25.5]} 46... Qxd6 {[%clk 0:00:09.3]} 47. exd6
{[%clk 0:00:26.4]} 47... Kf6 {[%clk 0:00:02.3]} 48. d7 {[%clk 0:00:24]} 1-0